fUSD/lending_fUSD_20250814
["ID","MTS","AMOUNT","RATE_DAILY","PERIOD"]
[379226004,1755197450871,-400.0,0.00027397,2]
[379226006,1755197450880,-500.0,0.00027397,2]
[379226008,1755197450889,-925.2,0.00027397,2]
[379226010,1755197450898,-625.81,0.00027397,2]
[379226012,1755197450908,-400.0,0.00027397,2]
[379226014,1755197450917,-500.0,0.00027397,2]
[379226016,1755197450926,-500.0,0.00027397,2]
[379226018,1755197450936,-500.0,0.00027397,2]
[379226020,1755197450945,-500.0,0.00027397,2]
[379226022,1755197450954,-500.0,0.00027397,2]
[379226024,1755197450964,-400.0,0.00027397,2]
[379226026,1755197450973,-400.0,0.00027397,2]
[379226028,1755197450982,-500.0,0.00027397,2]
[379226030,1755197450991,-500.0,0.00027397,2]
[379226032,1755197451001,-400.0,0.00027397,2]
[379226034,1755197451011,-400.0,0.00027397,2]
[379226036,1755197451021,-400.0,0.00027397,2]
[379226038,1755197451030,-400.0,0.00027397,2]
[379226040,1755197451040,-492.62,0.00027397,2]
[379226042,1755197451049,-400.0,0.00027397,2]
[379226044,1755197451058,-4320.29,0.00027397,2]
[379226046,1755197451067,-4302.85,0.00027397,2]
[379226048,1755197451077,-400.0,0.00027397,2]
[379226050,1755197451087,-400.0,0.00027397,2]
[379226052,1755197451097,-400.0,0.00027397,2]
[379226054,1755197451106,-1806.86,0.00027397,2]
[379226056,1755197451115,-501.39,0.00027397,2]
[379226058,1755197451125,-500.0,0.00027397,2]
[379226060,1755197451135,-500.0,0.00027397,2]
[379226062,1755197451144,-500.0,0.00027397,2]
[379226064,1755197451153,-500.0,0.00027397,2]
[379226066,1755197451163,-400.0,0.00027397,2]
[379226068,1755197451172,-667.57,0.00027397,2]
[379226070,1755197451182,-500.0,0.00027397,2]
[379226072,1755197451191,-2418.48,0.00027397,2]
[379226074,1755197451200,-355.81717624,0.00027397,2]
[379226076,1755197451209,-400.0,0.00027397,2]
[379226078,1755197451218,-970.23,0.00027397,2]
[379226080,1755197451228,-1474.284805,0.00027397,7]
[379226082,1755197451237,-796.2,0.00027397,2]
[379226084,1755197451246,-207.351488,0.00027397,7]
[379226086,1755197451255,-400.0,0.00027397,2]
[379226088,1755197451264,-400.0,0.00027397,2]
[379226090,1755197451274,-207.351488,0.00027397,7]
[379226092,1755197451283,-409.44,0.00027397,2]
[379226094,1755197451292,-400.0,0.00027397,2]
[379226096,1755197451302,-1474.284805,0.00027397,7]
[379226098,1755197451312,-986.64,0.00027397,2]
[379226100,1755197451321,-796.112719,0.00027397,7]
[379226102,1755197451330,-4645.35,0.00027397,2]
[379226104,1755197451339,-400.0,0.00027397,2]
[379226106,1755197451349,-3722.16,0.00027397,2]
[379226108,1755197451358,-3722.16,0.00027397,2]
[379226110,1755197451367,-3722.16,0.00027397,2]
[379226112,1755197451376,-400.0,0.00027397,2]
[379226114,1755197451386,-3722.16,0.00027397,2]
[379226116,1755197451395,-538.16,0.00027397,2]
[379226118,1755197451404,-3722.16,0.00027397,2]
[379226120,1755197451414,-3722.16,0.00027397,2]
[379226122,1755197451423,-3722.16,0.00027397,2]
[379226124,1755197451433,-207.351488,0.00027397,7]
[379226126,1755197451443,-3722.16,0.00027397,2]
[379226128,1755197451453,-439.94,0.00027397,2]
[379226130,1755197451462,-400.0,0.00027397,2]
[379226132,1755197451471,-207.351488,0.00027397,7]
[379226134,1755197451481,-4692.43,0.00027397,2]
[379226136,1755197451490,-3722.16,0.00027397,2]
[379226138,1755197451500,-400.0,0.00027397,2]
[379226140,1755197451509,-3722.16,0.00027397,2]
[379226142,1755197451518,-400.0,0.00027397,2]
[379226144,1755197451528,-3722.16,0.00027397,2]
[379226146,1755197451539,-400.0,0.00027397,2]
[379226148,1755197451548,-3722.16,0.00027397,2]
[379226150,1755197451557,-796.112719,0.00027397,7]
[379226152,1755197451567,-3722.16,0.00027397,2]
[379226155,1755197451577,-3722.16,0.00027397,2]
[379226157,1755197451588,-3722.16,0.00027397,2]
[379226159,1755197451597,-400.0,0.00027397,2]
[379226161,1755197451607,-3722.16,0.00027397,2]
[379226163,1755197451616,-3722.16,0.00027397,2]
[379226165,1755197451627,-3722.16,0.00027397,2]
[379226167,1755197451637,-400.0,0.00027397,2]
[379226169,1755197451647,-3722.16,0.00027397,2]
[379226171,1755197451656,-3722.16,0.00027397,2]
[379226173,1755197451667,-3722.16,0.00027397,2]
[379226175,1755197451676,-1335.35,0.00027397,2]
[379226177,1755197451686,-3722.16,0.00027397,2]
[379226179,1755197451695,-3722.16,0.00027397,2]
[379226181,1755197451705,-3722.27652128,0.00027397,2]
[379226183,1755197451715,-400.0,0.00027397,2]
[379226185,1755197451725,-1638.41,0.00027397,2]
[379226187,1755197451734,-661.25,0.00027397,2]
[379226189,1755197451744,-400.0,0.00027397,2]
[379226191,1755197451754,-867.47,0.00027397,2]
[379226194,1755197451763,-433.07,0.00027397,2]
[379226196,1755197451772,-400.0,0.00027397,2]
[379226198,1755197451783,-1723.3,0.00027397,2]
[379226200,1755197451793,-400.0,0.00027397,2]
[379226202,1755197451802,-1003.77,0.00027397,2]
[379226204,1755197451812,-1113.8,0.00027397,2]
[379226206,1755197451821,-400.0,0.00027397,2]
[379226208,1755197451831,-400.0,0.00027397,2]
[379226210,1755197451840,-909.54,0.00027397,2]
[379226212,1755197451849,-1210.93,0.00027397,2]
[379226214,1755197451859,-400.0,0.00027397,2]
[379226216,1755197451868,-500.0,0.00027397,2]
[379226218,1755197451878,-1405.36,0.00027397,2]
[379226220,1755197451887,-202.00379,0.00027397,2]
[379226222,1755197451897,-500.0,0.00027397,2]
[379226224,1755197451906,-400.0,0.00027397,2]
[379226226,1755197451916,-1394.3,0.00027397,2]
[379226228,1755197451926,-400.0,0.00027397,2]
[379226230,1755197451935,-400.0,0.00027397,2]
[379226232,1755197451945,-1988.37,0.00027397,2]
[379226234,1755197451954,-400.0,0.00027397,2]
[379226236,1755197451964,-535.49,0.00027397,2]
[379226238,1755197451973,-535.49,0.00027397,2]
[379226240,1755197451983,-535.49,0.00027397,2]
[379226242,1755197451993,-535.49,0.00027397,2]
[379226244,1755197452003,-535.49,0.00027397,2]
[379226246,1755197452013,-214.29654027,0.00027397,2]
[379226248,1755197452023,-535.49,0.00027397,2]
[379226250,1755197452033,-535.49,0.00027397,2]
[379226252,1755197452042,-535.49,0.00027397,2]
[379226254,1755197452052,-1902.47,0.00027397,2]
[379226257,1755197452063,-400.0,0.00027397,2]
[379226259,1755197452073,-400.0,0.00027397,2]
[379226261,1755197452083,-535.49,0.00027397,2]
[379226263,1755197452093,-5033.49,0.00027397,2]
[379226265,1755197452103,-400.0,0.00027397,2]
[379226267,1755197452112,-400.0,0.00027397,2]
[379226269,1755197452122,-269.749666,0.00027397,7]
[379226271,1755197452132,-2149.22,0.00027397,2]
[379226273,1755197452142,-269.749666,0.00027397,7]
[379226275,1755197452152,-3429.89,0.00027397,2]
[379226277,1755197452162,-446.23,0.00027397,2]
[379226279,1755197452172,-500.0,0.00027397,2]
[379226281,1755197452182,-500.0,0.00027397,2]
[379226283,1755197452193,-500.0,0.00027397,2]
[379226285,1755197452206,-500.0,0.00027397,2]
[379226287,1755197452216,-500.0,0.00027397,2]
[379226289,1755197452226,-500.0,0.00027397,2]
[379226291,1755197452236,-400.0,0.00027397,2]
[379226293,1755197452246,-500.0,0.00027397,2]
[379226295,1755197452256,-710.94,0.00027397,2]
[379226297,1755197452265,-2135.65,0.00027397,2]
[379226299,1755197452275,-500.0,0.00027397,2]
[379226301,1755197452284,-500.0,0.00027397,2]
[379226304,1755197452294,-5991.48,0.00027397,2]
[379226306,1755197452304,-269.749666,0.00027397,7]
[379226308,1755197452313,-400.0,0.00027397,2]
[379226310,1755197452323,-269.749666,0.00027397,7]
[379226312,1755197452333,-400.0,0.00027397,2]
[379226314,1755197452342,-400.0,0.00027397,2]
[379226316,1755197452352,-400.0,0.00027397,2]
[379226318,1755197452362,-400.0,0.00027397,2]
[379226320,1755197452372,-400.0,0.00027397,2]
[379226322,1755197452382,-861.28,0.00027397,2]
[379226324,1755197452392,-2098.46,0.00027397,2]
[379226326,1755197452402,-438.76,0.00027397,2]
[379226328,1755197452411,-3622.91,0.00027397,2]
[379226330,1755197452421,-400.0,0.00027397,2]
[379226332,1755197452432,-400.0,0.00027397,2]
[379226334,1755197452441,-873.73,0.00027397,2]
[379226336,1755197452451,-879.61,0.00027397,2]
[379226338,1755197452461,-1907.95,0.00027397,2]
[379226339,1755197452470,-400.0,0.00027397,2]
[379226340,1755197452479,-570.29,0.00027397,2]
[379226341,1755197452489,-1591.37,0.00027397,2]
[379226342,1755197452499,-400.0,0.00027397,2]
[379226343,1755197452508,-1976.39,0.00027397,2]
[379226344,1755197452518,-529.97,0.00027397,2]
[379226345,1755197452528,-428.23,0.00027397,2]
[379226346,1755197452538,-400.0,0.00027397,2]
[379226347,1755197452547,-1401.87,0.00027397,2]
[379226348,1755197452557,-1881.8,0.00027397,2]
[379226349,1755197452567,-1060.26,0.00027397,2]
[379226350,1755197452579,-457.42,0.00027397,2]
[379226351,1755197452591,-1004.61,0.00027397,2]
[379226352,1755197452600,-540.01,0.00027397,2]
[379226353,1755197452610,-400.0,0.00027397,2]
[379226354,1755197452620,-400.0,0.00027397,2]
[379226355,1755197452631,-1449.95,0.00027397,2]
[379226357,1755197452641,-5432.19,0.00027397,2]
[379226359,1755197452651,-4094.36,0.00027397,2]
[379226360,1755197452662,-609.76,0.00027397,2]
[379226361,1755197452673,-400.0,0.00027397,2]
[379226362,1755197452684,-400.0,0.00027397,2]
[379226363,1755197452694,-411.59,0.00027397,2]
[379226364,1755197452704,-1015.4,0.00027397,2]
[379226365,1755197452714,-400.0,0.00027397,2]
[379226366,1755197452724,-400.0,0.00027397,2]
[379226367,1755197452733,-151.0,0.00027397,7]
[379226368,1755197452744,-151.0,0.00027397,7]
[379226369,1755197452753,-3501.22,0.00027397,2]
[379226370,1755197452764,-2372.0,0.00027397,2]
[379226371,1755197452773,-4616.26,0.00027397,2]
[379226372,1755197452784,-400.0,0.00027397,2]
[379226374,1755197452794,-1107.42,0.00027397,2]
[379226377,1755197452804,-400.0,0.00027397,2]
[379226379,1755197452814,-3217.15,0.00027397,2]
[379226381,1755197452823,-3764.18,0.00027397,2]
[379226383,1755197452833,-1385.75,0.00027397,2]
[379226385,1755197452844,-2020.03,0.00027397,2]
[379226387,1755197452853,-400.0,0.00027397,2]
[379226389,1755197452863,-427.93,0.00027397,2]
[379226391,1755197452873,-1893.69,0.00027397,2]
[379226393,1755197452882,-400.0,0.00027397,2]
[379226395,1755197452892,-4811.79,0.00027397,2]
[379226397,1755197452902,-400.0,0.00027397,2]
[379226399,1755197452911,-400.0,0.00027397,2]
[379226401,1755197452921,-1008.63,0.00027397,2]
[379226403,1755197452931,-400.0,0.00027397,2]
[379226405,1755197452941,-5856.63,0.00027397,2]
[379226407,1755197452950,-400.0,0.00027397,2]
[379226409,1755197452959,-603.17,0.00027397,2]
[379226411,1755197452969,-400.0,0.00027397,2]
[379226413,1755197452979,-400.0,0.00027397,2]
[379226415,1755197452988,-400.0,0.00027397,2]
[379226418,1755197452999,-3504.51,0.00027397,2]
[379226420,1755197453009,-3420.2,0.00027397,2]
[379226422,1755197453019,-1102.49,0.00027397,2]
[379226424,1755197453028,-925.25,0.00027397,2]
[379226426,1755197453039,-574.09,0.00027397,2]
[379226428,1755197453050,-516.48,0.00027397,2]
[379226430,1755197453060,-860.55,0.00027397,2]
[379226432,1755197453070,-3058.61,0.00027397,2]
[379226434,1755197453080,-2888.05,0.00027397,2]
[379226436,1755197453090,-658.1,0.00027397,2]
[379226438,1755197453101,-401.08536678,0.00027397,2]
[379226440,1755197453111,-1020.78,0.00027397,2]
[379226442,1755197453122,-400.0,0.00027397,2]
[379226444,1755197453132,-1071.19,0.00027397,2]
[379226446,1755197453142,-5565.03,0.00027397,2]
[379226448,1755197453153,-400.0,0.00027397,2]
[379226450,1755197453163,-400.0,0.00027397,2]
[379226452,1755197453174,-400.0,0.00027397,2]
[379226454,1755197453184,-3643.92,0.00027397,2]
[379226456,1755197453195,-3854.42,0.00027397,2]
[379226458,1755197453204,-907.42,0.00027397,2]
[379226460,1755197453215,-3926.49,0.00027397,2]
[379226462,1755197453224,-464.07,0.00027397,2]
[379226465,1755197453235,-1471.29,0.00027397,2]
[379226467,1755197453247,-400.0,0.00027397,2]
[379226469,1755197453258,-400.0,0.00027397,2]
[379226471,1755197453267,-480.6,0.00027397,2]
[379226473,1755197453277,-400.0,0.00027397,2]
[379226475,1755197453287,-4387.92,0.00027397,2]
[379226477,1755197453297,-757.41,0.00027397,2]
[379226479,1755197453307,-401.29758067,0.00027397,2]
[379226481,1755197453317,-547.57,0.00027397,2]
[379226483,1755197453327,-777.54,0.00027397,2]
[379226485,1755197453337,-1185.6,0.00027397,2]
[379226487,1755197453347,-400.0,0.00027397,2]
[379226489,1755197453357,-3433.9,0.00027397,2]
[379226491,1755197453367,-1238.82,0.00027397,2]
[379226493,1755197453378,-400.0,0.00027397,2]
[379226495,1755197453389,-2709.33,0.00027397,2]
[379226497,1755197453398,-1079.85,0.00027397,2]
[379226499,1755197453408,-500.0,0.00027397,2]
[379226501,1755197453418,-500.0,0.00027397,2]
[379226503,1755197453428,-400.0,0.00027397,2]
[379226505,1755197453438,-500.0,0.00027397,2]
[379226507,1755197453448,-500.0,0.00027397,2]
[379226509,1755197453458,-500.0,0.00027397,2]
[379226511,1755197453468,-677.22,0.00027397,2]
[379226513,1755197453477,-500.0,0.00027397,2]
[379226515,1755197453487,-1129.78,0.00027397,2]
[379226517,1755197453496,-500.0,0.00027397,2]
[379226519,1755197453506,-1450.7,0.00027397,2]
[379226521,1755197453515,-400.0,0.00027397,2]
[379226523,1755197453525,-500.0,0.00027397,2]
[379226525,1755197453535,-400.0,0.00027397,2]
[379226527,1755197453545,-500.0,0.00027397,2]
[379226530,1755197453554,-400.0,0.00027397,2]
[379226532,1755197453565,-2945.94,0.00027397,2]
[379226534,1755197453575,-500.0,0.00027397,2]
[379226536,1755197453588,-500.0,0.00027397,2]
[379226538,1755197453598,-554.61,0.00027397,2]
[379226540,1755197453609,-500.0,0.00027397,2]
[379226542,1755197453618,-500.0,0.00027397,2]
[379226544,1755197453628,-500.0,0.00027397,2]
[379226546,1755197453638,-500.0,0.00027397,2]
[379226548,1755197453648,-475.36,0.00027397,2]
[379226550,1755197453657,-500.0,0.00027397,2]
[379226552,1755197453668,-500.0,0.00027397,2]
[379226554,1755197453678,-500.0,0.00027397,2]
[379226556,1755197453688,-2492.74,0.00027397,2]
[379226558,1755197453698,-400.0,0.00027397,2]
[379226560,1755197453707,-500.0,0.00027397,2]
[379226573,1755197454047,-312.85,0.00027397,2]
[379226574,1755197454058,-2653.72,0.00027397,2]
[379226575,1755197454067,-4001.59,0.00027397,2]
[379226576,1755197454077,-228.45769924,0.00027397,2]
[379226577,1755197454087,-695.99,0.00027397,2]
[379226578,1755197454096,-3366.99,0.00027397,2]
[379226579,1755197454105,-400.0,0.00027397,2]
[379226580,1755197454115,-767.47,0.00027397,2]
[379226581,1755197454124,-2826.43,0.00027397,2]
[379226582,1755197454134,-400.0,0.00027397,2]
[379226583,1755197454143,-400.0,0.00027397,2]
[379226584,1755197454153,-2616.32,0.00027397,2]
[379226585,1755197454162,-169.12713066,0.00027397,2]
[379226586,1755197454172,-400.0,0.00027397,2]
[379226587,1755197454182,-400.0,0.00027397,2]
[379226588,1755197454191,-1711.37,0.00027397,2]
[379226589,1755197454200,-4122.44,0.00027397,2]
[379226590,1755197454210,-4222.08,0.00027397,2]
[379226591,1755197454223,-1232.2,0.00027397,2]
[379226592,1755197454232,-1104.13,0.00027397,2]
[379226593,1755197454242,-400.0,0.00027397,2]
[379226594,1755197454252,-400.0,0.00027397,2]
[379226595,1755197454262,-787.02,0.00027397,2]
[379226596,1755197454271,-400.0,0.00027397,2]
[379226597,1755197454281,-5880.0,0.00027397,2]
[379226598,1755197454291,-400.0,0.00027397,2]
[379226599,1755197454301,-1002.36,0.00027397,2]
[379226600,1755197454310,-400.0,0.00027397,2]
[379226601,1755197454320,-1095.21,0.00027397,2]
[379226602,1755197454330,-400.0,0.00027397,2]
[379226603,1755197454339,-400.0,0.00027397,2]
[379226604,1755197454350,-864.97,0.00027397,2]
[379226605,1755197454359,-400.0,0.00027397,2]
[379226606,1755197454369,-1479.5,0.00027397,2]
[379226607,1755197454378,-786.0,0.00027397,2]
[379226608,1755197454387,-325.47431579,0.00027397,2]
[379226609,1755197454397,-735.13,0.00027397,2]
[379226610,1755197454406,-1633.55,0.00027397,2]
[379226611,1755197454415,-4209.13,0.00027397,2]
[379226612,1755197454424,-1374.78,0.00027397,2]
[379226613,1755197454434,-400.0,0.00027397,2]
[379226614,1755197454443,-1766.42,0.00027397,2]
[379226615,1755197454452,-407.58,0.00027397,2]
[379226616,1755197454461,-400.0,0.00027397,2]
[379226617,1755197454471,-806.46,0.00027397,2]
[379226618,1755197454479,-467.283715,0.00027397,7]
[379226619,1755197454489,-4838.28,0.00027397,2]
[379226620,1755197454498,-2944.71,0.00027397,2]
[379226621,1755197454507,-400.0,0.00027397,2]
[379226622,1755197454516,-400.0,0.00027397,2]
[379226623,1755197454526,-3362.49,0.00027397,2]
[379226624,1755197454536,-1563.91,0.00027397,2]
[379226625,1755197454546,-2103.86,0.00027397,2]
[379226626,1755197454555,-400.0,0.00027397,2]
[379226627,1755197454564,-647.32,0.00027397,2]
[379226628,1755197454573,-467.283715,0.00027397,7]
[379226629,1755197454583,-602.51,0.00027397,2]
[379226630,1755197454597,-1173.07,0.00027397,2]
[379226631,1755197454608,-653.69,0.00027397,2]
[379226632,1755197454618,-400.0,0.00027397,2]
[379226633,1755197454628,-727.53,0.00027397,2]
[379226634,1755197454638,-524.92,0.00027397,2]
[379226635,1755197454647,-1285.06,0.00027397,2]
[379226636,1755197454656,-2384.91,0.00027397,2]
[379226637,1755197454666,-400.0,0.00027397,2]
[379226638,1755197454676,-2013.26,0.00027397,2]
[379226639,1755197454685,-1817.6,0.00027397,2]
[379226640,1755197454694,-3252.14,0.00027397,2]
[379226641,1755197454704,-400.0,0.00027397,2]
[379226642,1755197454713,-400.0,0.00027397,2]
[379226643,1755197454723,-2500.17,0.00027397,2]
[379226644,1755197454732,-400.0,0.00027397,2]
[379226645,1755197454741,-805.36,0.00027397,2]
[379226646,1755197454751,-473.85,0.00027397,2]
[379226647,1755197454760,-400.0,0.00027397,2]
[379226648,1755197454769,-2211.19,0.00027397,2]
[379226649,1755197454779,-1802.56,0.00027397,2]
[379226650,1755197454788,-844.97,0.00027397,2]
[379226651,1755197454797,-400.0,0.00027397,2]
[379226652,1755197454806,-605.48,0.00027397,2]
[379226653,1755197454815,-400.0,0.00027397,2]
[379226654,1755197454824,-400.0,0.00027397,2]
[379226655,1755197454834,-4968.37,0.00027397,2]
[379226656,1755197454843,-581.38,0.00027397,2]
[379226657,1755197454852,-400.0,0.00027397,2]
[379226658,1755197454862,-400.0,0.00027397,2]
[379226659,1755197454871,-400.0,0.00027397,2]
[379226660,1755197454881,-496.59,0.00027397,2]
[379226661,1755197454890,-400.0,0.00027397,2]
[379226662,1755197454899,-2738.06,0.00027397,2]
[379226663,1755197454909,-400.0,0.00027397,2]
[379226664,1755197454918,-961.93,0.00027397,2]
[379226665,1755197454927,-942.84,0.00027397,2]
[379226666,1755197454936,-1815.1,0.00027397,2]
[379226667,1755197454946,-400.0,0.00027397,2]
[379226668,1755197454955,-400.0,0.00027397,2]
[379226669,1755197454965,-400.70671271,0.00027397,2]
[379226670,1755197454974,-2415.32,0.00027397,2]
[379226671,1755197454983,-2277.59,0.00027397,2]
[379226672,1755197454993,-400.0,0.00027397,2]
[379226673,1755197455002,-3639.44,0.00027397,2]
[379226674,1755197455012,-400.0,0.00027397,2]
[379226675,1755197455021,-400.0,0.00027397,2]
[379226676,1755197455030,-1726.82,0.00027397,2]
[379226677,1755197455040,-400.0,0.00027397,2]
[379226678,1755197455049,-402.28737314,0.00027397,2]
[379226679,1755197455059,-2165.22,0.00027397,2]
[379226680,1755197455069,-151.0,0.00027397,7]
[379226681,1755197455079,-400.0,0.00027397,2]
[379226682,1755197455088,-151.0,0.00027397,7]
[379226683,1755197455097,-500.0,0.00027397,2]
[379226684,1755197455108,-2200.62,0.00027397,2]
[379226685,1755197455117,-852.11,0.00027397,2]
[379226686,1755197455126,-400.0,0.00027397,2]
[379226687,1755197455135,-400.0,0.00027397,2]
[379226688,1755197455145,-400.0,0.00027397,2]
[379226689,1755197455154,-400.0,0.00027397,2]
[379226690,1755197455163,-400.0,0.00027397,2]
[379226691,1755197455174,-400.0,0.00027397,2]
[379226692,1755197455183,-400.0,0.00027397,2]
[379226693,1755197455193,-1596.549945,0.00027397,7]
[379226694,1755197455203,-3230.02,0.00027397,2]
[379226695,1755197455213,-5190.73,0.00027397,2]
[379226696,1755197455223,-2866.32,0.00027397,2]
[379226697,1755197455234,-400.0,0.00027397,2]
[379226698,1755197455244,-437.76,0.00027397,2]
[379226699,1755197455253,-927.19,0.00027397,2]
[379226700,1755197455263,-400.0,0.00027397,2]
[379226701,1755197455272,-1507.17,0.00027397,2]
[379226702,1755197455282,-474.92,0.00027397,2]
[379226703,1755197455293,-4067.51,0.00027397,2]
[379226704,1755197455302,-662.04,0.00027397,2]
[379226705,1755197455311,-632.46,0.00027397,2]
[379226706,1755197455321,-1596.549945,0.00027397,7]
[379226707,1755197455331,-400.0,0.00027397,2]
[379226708,1755197455341,-400.0,0.00027397,2]
[379226709,1755197455350,-400.0,0.00027397,2]
[379226710,1755197455361,-400.0,0.00027397,2]
[379226711,1755197455371,-1230.83,0.00027397,2]
[379226712,1755197455381,-400.0,0.00027397,2]
[379226713,1755197455391,-494.73319248,0.00027397,2]
[379226714,1755197455401,-3286.93,0.00027397,2]
[379226715,1755197455412,-400.0,0.00027397,2]
[379226716,1755197455422,-4062.71,0.00027397,2]
[379226717,1755197455432,-3900.95,0.00027397,2]
[379226718,1755197455443,-537.37606465,0.00027397,2]
[379226719,1755197455452,-6441.92,0.00027397,2]
[379226720,1755197455463,-3147.41,0.00027397,2]
[379226721,1755197455473,-400.0,0.00027397,2]
[379226722,1755197455483,-4305.21,0.00027397,2]
[379226723,1755197455492,-4305.21,0.00027397,2]
[379226724,1755197455502,-1734.44,0.00027397,2]
[379226725,1755197455511,-4305.21,0.00027397,2]
[379226726,1755197455521,-4305.21,0.00027397,2]
[379226727,1755197455530,-400.0,0.00027397,2]
[379226728,1755197455541,-4305.21,0.00027397,2]
[379226729,1755197455551,-4305.21,0.00027397,2]
[379226730,1755197455561,-4305.21,0.00027397,2]
[379226731,1755197455571,-4305.21,0.00027397,2]
[379226732,1755197455581,-617.34,0.00027397,2]
[379226733,1755197455593,-4305.21,0.00027397,2]
[379226734,1755197455602,-4305.21,0.00027397,2]
[379226735,1755197455611,-3757.46,0.00027397,2]
[379226736,1755197455621,-4305.21,0.00027397,2]
[379226737,1755197455631,-1936.14,0.00027397,2]
[379226738,1755197455640,-803.09,0.00027397,2]
[379226739,1755197455650,-12.26004826,0.00027397,2]
[379226740,1755197456948,-1189.84669104,0.00027397,2]
[379226741,1755197456961,-778.752,0.00027397,2]
[379226742,1755197457055,-2324.3512607,0.00027397,2]
[379226743,1755197457064,-400.0,0.00027397,2]
[379226744,1755197457074,-4305.21,0.00027397,2]
[379226745,1755197457083,-4305.21,0.00027397,2]
[379226746,1755197457092,-4305.21,0.00027397,2]
[379226747,1755197457102,-3773.65,0.00027397,2]
[379226748,1755197457111,-4305.21,0.00027397,2]
[379226749,1755197457120,-4305.21,0.00027397,2]
[379226750,1755197457130,-4139.66102174,0.00027397,2]
[379226751,1755197457144,-165.54897826,0.00027397,2]
[379226752,1755197457153,-4305.21,0.00027397,2]
[379226753,1755197457162,-4305.21,0.00027397,2]
[379226754,1755197457172,-4305.21,0.00027397,2]
[379226755,1755197457180,-1914.46,0.00027397,2]
[379226756,1755197457189,-596.17,0.00027397,2]
[379226757,1755197457198,-4305.21,0.00027397,2]
[379226758,1755197457209,-4305.21,0.00027397,2]
[379226759,1755197457219,-1781.79,0.00027397,2]
[379226760,1755197457228,-1328.95,0.00027397,2]
[379226761,1755197457236,-977.03102174,0.00027397,2]
[379226762,1755197457249,-3328.3142783,0.00027397,2]
[379226763,1755197457257,-579.2,0.00027397,2]
[379226764,1755197457266,-508.84,0.00027397,2]
[379226765,1755197457274,-1744.05,0.00027397,2]
[379226766,1755197457282,-2235.24,0.00027397,2]
[379226767,1755197457290,-400.0,0.00027397,2]
[379226768,1755197457299,-400.0,0.00027397,2]
[379226769,1755197457307,-6330.35,0.00027397,2]
[379226770,1755197457315,-465.82,0.00027397,2]
[379226771,1755197457323,-315.606927,0.00027397,7]
[379226772,1755197457332,-400.0,0.00027397,2]
[379226773,1755197457341,-1254.82,0.00027397,2]
[379226774,1755197457350,-1537.7587947,0.00027397,2]
[379226775,1755197458353,-0.15720476,0.00027284,2]
[379226776,1755197458477,-372.84217625,0.00027284,2]
[379226777,1755197458487,-350.0,0.0002737,2]
[379226778,1755197458498,-677.4812053,0.00027397,2]
[379226779,1755197458509,-966.77838969,0.00027397,2]
[379226780,1755197459720,-1242.66161031,0.00027397,2]
[379226781,1755197459730,-400.0,0.00027397,2]
[379226782,1755197459740,-400.0,0.00027397,2]